Cogmind - Beta 11.1 @@@ ROGUE MODE // 2022.06.02 @ 14:47:00 Player: Demise Result: Destroyed by as-67372 with Assembled Maul Performance ------------- Evolutions (0) 0 Regions Visited (2) 400 Robots Destroyed (42) 210 Value Destroyed (852) 852 Prototype IDs (0) 0 Alien Tech Used (0) 0 Bonus (1) 1 TOTAL SCORE: 1463 Bonus ------- High Alert Combat Kills 16 Friendly Fire -15 Cogmind --------- Core Integrity 0/250 Matter 300/300 Energy 100/100 System Corruption 6% Temperature Cool (0) Movement Rolling (140) Ox4 Location -10/Mines Parts ------- > --- POWER (1) -------- (None) > --- PROPULSION (2) --- Wheel Wheel > --- UTILITY (2) ------ Huge Storage Unit Seismic Detector > --- WEAPON (2) ------- Heavy Assault Rifle Heavy Assault Rifle > --- INVENTORY (25) --- Light Ion Engine Wheel Wheel Wheel Wheel Wheel Wheel Wheel Wheel Improved Heat Sink High-capacity Battery (250) Targeting Computer Light Armor Plating Heavy Assault Rifle Heavy Assault Rifle Autogun Autogun Autogun Autogun Flail Peak State ------------ > --- POWER ------------ Ion Engine > --- PROPULSION ------- Wheel Wheel > --- UTILITY ---------- Huge Storage Unit Light Armor Plating > --- WEAPON ----------- Heavy Assault Rifle Heavy Assault Rifle > --- INVENTORY -------- Wheel Wheel Wheel Wheel Wheel High-capacity Battery Seismic Detector Heavy Assault Rifle Heavy Assault Rifle Autogun Autogun Autogun Autogun Flail [Rating: 11] Favorites ----------- Power Ion Engine Engine Ion Engine Propulsion Wheel Wheel Wheel Utility Huge Storage Unit Device Seismic Detector Storage Huge Storage Unit Protection Light Armor Plating Weapon Heavy Assault Rifle Energy Gun Medium Laser Ballistic Gun Heavy Assault Rifle Build | -11 -10 -10 ------- Run | Scr Mat Min Slots Evolved . | . . . Power . | . . . Propulsion . | . . . Utility . | . . . Weapon . | . . . Parts Attached 23 | 8 15 . Power 5 | 1 4 . Engine 5 | 1 4 . Core . | . . . Reactor . | . . . Propulsion 7 | 2 5 . Treads . | . . . Leg . | . . . Wheel 7 | 2 5 . Hover . | . . . Flight . | . . . Utility 7 | 3 4 . Device 4 | 2 2 . Storage 2 | 1 1 . Processor . | . . . Hackware . | . . . Protection 1 | . 1 . Artifact . | . . . Weapon 4 | 2 2 . Energy Gun 1 | 1 . . Energy Cannon . | . . . Ballistic Gun 3 | 1 2 . Ballistic Cannon . | . . . Launcher . | . . . Special Weapon . | . . . Impact Weapon . | . . . Slashing Weapon . | . . . Piercing Weapon . | . . . Special Melee Weapon . | . . . Unidentified Prototypes . | . . . Parts Lost 2 | . 1 1 Power 1 | . . 1 Propulsion 1 | . 1 . Utility . | . . . Weapon . | . . . Highest Loss Streak 1 | . 1 1 To Critical Strikes . | . . . Average Slot Usage (%) 99 | . 99 100 Engine 14 | . 14 14 Wheel 27 | . 27 28 Device 7 | . 5 14 Storage 14 | . 14 14 Protection 6 | . 7 . Energy Gun 4 | . 5 . Ballistic Gun 23 | . 22 28 Naked Turns . | . . . Heaviest Build 94 | 15 94 90 Greatest Support 26 | 26 26 20 Greatest Overweight (x) 4 | . 4 4 Average Overweight (x) 1 | . 1 4 Largest Inventory Capacity 25 | 8 25 25 Average Capacity 17 | 7 16 25 Most Carried 20 | 8 20 20 Average Carried 12 | 2 11 20 Final Capacity 25 | 8 25 25 Final Carried 20 | 8 20 20 Class Distribution -------------------- 85% | Mutant 14% | Scavenger-Mutant Dominant Class ---------------- Mutant | -10/Materials Scavenger-Mutant | -10/Mines Resources | -11 -10 -10 ----------- Run | Scr Mat Min Matter Collected 996 | 340 617 39 Remotely 202 | 202 . . Salvage Created 1409 | 240 1114 55 Parts 98 | 21 75 2 Haulers Intercepted 2 | . 2 . Recyclers Shooed . | . . . Parts Field Recycled . | . . . Retrieved Matter . | . . . Parts Self-Destructed . | . . . Prevented . | . . . Kills | -11 -10 -10 ------- Run | Scr Mat Min Combat Hostiles Destroyed 25 | . 23 2 Melee 1 | . . 1 Guns 24 | . 23 1 Classes Destroyed 9 | 3 5 1 Worker 7 | 2 4 1 Tunneler 5 | 5 . . Hauler 2 | . 2 . Recycler 2 | 1 1 . Operator 1 | . 1 . Watcher 2 | . 2 . Swarmer 3 | . 3 . Grunt 20 | . 20 . Assembled 2 | . . 2 Best Kill Streak 6 | 6 5 2 Combat Bots Only 5 | . 5 2 Max Kills in Single Turn 1 | 1 1 1 Gunslinging . | . . . Exploded . | . . . Melee 1 | . . 1 Uniques/NPCs Destroyed . | . . . Combat | -11 -10 -10 -------- Run | Scr Mat Min Damage Taken 703 | . 648 55 Core 257 | . 228 29 Absorbed by Shields . | . . . Regen/Repaired (Parts) 44 | . 44 . Core Remaining (%) 100 | 100 . . Volleys Fired 127 | 20 104 3 Largest 2 | 2 2 2 Hottest 70 | 70 70 46 Shots Fired 250 | 38 206 6 Gun 250 | 38 206 6 Cannon . | . . . Launcher . | . . . Special . | . . . Kinetic 186 | 20 160 6 Thermal 64 | 18 46 . Explosive . | . . . Electromagnetic . | . . . Robot Hit Streak 9 | 4 9 4 Robot Miss Streak 6 | 6 6 2 Penetration Max . | . . . Secondary Targets 1 | . 1 . Max Gunslinging Chain 1 | . 1 . Shots Hit Robots 140 | 15 121 4 Core Hits 61 | 9 48 4 Critical Kills 1 | . 1 . Critical Parts Destroyed . | . . . Critical Strikes 4 | 1 3 . Burn 3 | 1 2 . Destroy 1 | . 1 . Melee Attacks . | . . . Impact . | . . . Slashing . | . . . Piercing . | . . . Sneak Attacks . | . . . Combat Hostiles . | . . . Follow-up Attacks . | . . . Damage Inflicted 2074 | 203 1752 119 Guns 2050 | 203 1752 95 Cannons . | . . . Explosions . | . . . Melee . | . . . Ramming 24 | . . 24 Kinetic 1631 | 87 1449 95 Thermal 419 | 116 303 . Explosive . | . . . Electromagnetic . | . . . Impact . | . . . Slashing . | . . . Piercing . | . . . Highest Corruption 2 | . 2 2 Average Corruption 1 | . 1 2 Corruption Purged . | . . . Corruption Blocked . | . . . Effects 11 | . 8 3 Message Errors 6 | . 5 1 Matter Fused 2 | . 1 1 Energy Discharges 1 | . 1 . Parts Rejected 1 | . 1 . Data Loss (minor) 1 | . . 1 Overload Shots . | . . . Overflow Damage . | . . . Projectiles . | . . . Explosions . | . . . Melee . | . . . Knockbacks . | . . . Impact . | . . . Kinetic . | . . . Secondary . | . . . Self-Inflicted Damage 12 | . . 12 Shots . | . . . Rammed 1 | . . 1 Targets Rammed 1 | . . 1 Kicked . | . . . Crushed . | . . . Highest Temperature 150 | 65 150 . Average Temperature 29 | 26 30 . Received Heat Transfer 342 | . 342 . Siege Activations . | . . . Robots Corrupted . | . . . Combat Hostiles . | . . . Parts Fried . | . . . Impact Corruptions . | . . . Robots Melted . | . . . Combat Hostiles . | . . . Parts Melted 2 | . 2 . Heat Transferred 1443 | 407 1036 . Parts Sabotaged . | . . . Parts Stolen . | . . . Parts Stripped . | . . . Power Chain Reactions . | . . . Missiles Intercepted . | . . . Alert | -11 -10 -10 ------- Run | Scr Mat Min Peak Influence 446 | 40 446 178 Initial 173 | . 26 173 Average 219 | 21 259 172 Maximum Alert Level 2 | . 2 . Low Security (%) 44 | 100 24 100 Level 1 51 | . 69 . Level 2 4 | . 5 . Level 3 . | . . . Level 4 . | . . . Level 5 . | . . . High Security . | . . . Max Security . | . . . Squads Dispatched 6 | . 6 . Investigation 3 | . 3 . Extermination . | . . . Reinforcement 3 | . 3 . Assault . | . . . Garrison . | . . . Intercept . | . . . Searches Triggered . | . . . Construction Impeded . | . . . Haulers Reinforced . | . . . Active Scanning Responses . | . . . Cargo Convoy Interrupts . | . . . Stealth | -11 -10 -10 --------- Run | Scr Mat Min Distress Signals 2 | . 2 . Communications Jammed . | . . . Distress Signals . | . . . Times Spotted 43 | . 38 5 Peak Tracking Total 5 | . 3 5 Tactical Retreats 2 | . 1 1 Traps | -11 -10 -10 ------- Run | Scr Mat Min Traps Triggered 2 | . 2 . Indirectly . | . . . Trap Hack Attempts . | . . . Triggered . | . . . Disarmed . | . . . Reprogrammed . | . . . Reused . | . . . Traps Extracted . | . . . Installed . | . . . Triggered . | . . . Machines | -11 -10 -10 ---------- Run | Scr Mat Min Machines Disabled 1 | . 1 . Max in Single Turn 1 | . 1 . Machines Sabotaged . | . . . Garrisons Compromised . | . . . Overloaded Fab Kills . | . . . Hacking | -11 -10 -10 --------- Run | Scr Mat Min Machines Accessed 6 | . 6 . Terminals 3 | . 3 . Fabricators . | . . . Repair Stations 1 | . 1 . Recycling Units 2 | . 2 . Scanalyzers . | . . . Garrison Access . | . . . Total Hacks 18 | . 18 . Successful 11 | . 11 . Failed 7 | . 7 . Catastrophic . | . . . Database Lockouts . | . . . Manual 13 | . 13 . Terminals 10 | . 10 . Fabricators . | . . . Repair Stations 2 | . 2 . Recycling Units 6 | . 6 . Scanalyzers . | . . . Garrison Access . | . . . Terminal Hacks 3 | . 3 . Robot Analysis 2 | . 2 . Branch Access Points 1 | . 1 . Fabricator Hacks . | . . . Repair Station Hacks 2 | . 2 . Scan Component 1 | . 1 . Repair 1 | . 1 . Recycling Unit Hacks 2 | . 2 . Retrieve Components 2 | . 2 . Scanalyzer . | . . . Garrison Access Hacks . | . . . Unauthorized Hacks 4 | . 4 . Terminals 2 | . 2 . Botnet 2 | . 2 . Fabricators . | . . . Repair Stations . | . . . Recycling Units 2 | . 2 . Tunnel 2 | . 2 . Scanalyzers . | . . . Garrison Access . | . . . Data Cores Recovered . | . . . Used . | . . . Hacking Detections 5 | . 5 . Full Trace Events 2 | . 2 . Feedback Events . | . . . Feedback Blocked . | . . . Robot Schematics Acquired . | . . . Robots Built . | . . . Authchips . | . . . Time . | . . . Total Robot Build Rating . | . . . Part Schematics Acquired . | . . . Parts Built . | . . . Authchips . | . . . Time . | . . . Total Part Build Rating . | . . . Parts Repaired 1 | . 1 . Time 26 | . 26 . Parts Recycled . | . . . Recycled Matter . | . . . Retrieved Matter . | . . . Retrieved Components 7 | . 7 . Parts Scanalyzed . | . . . Part Schematics Acquired . | . . . Parts Damaged . | . . . Bothacking | -11 -10 -10 ------------ Run | Scr Mat Min Used RIF Installer . | . . . Robots Hacked . | . . . Non-combat . | . . . Combat . | . . . Robot Hacks Applied . | . . . Relay Couplers Released . | . . . Fabnet Peak Effective % . | . . . Robots Rewired . | . . . Allies Hacked . | . . . Hacks Repelled . | . . . Allies | -11 -10 -10 -------- Run | Scr Mat Min Total Allies 3 | . . 3 Largest Group 3 | . . 3 Highest-Rated Group 40 | . . 40 Highest-Rated Ally 16 | . . 16 Total Orders . | . . . Ally Attacks 9 | . . 9 Total Damage 91 | . . 91 Kills . | . . . Allies Corrupted . | . . . Allies Melted . | . . . Intel | -11 -10 -10 ------- Run | Scr Mat Min Robot Analysis Total 2 | . 2 . Derelict Logs Recovered 1 | . . 1 Drone Launches . | . . . Drone Recoveries . | . . . Exploration | -11 -10 -10 ------------- Run | Scr Mat Min Turns Passed 1517 | 173 1118 226 Spaces Moved 925 | 104 666 155 Core 1 | 1 . . Treads . | . . . Legs . | . . . Wheels 924 | 103 666 155 Hover . | . . . Flight . | . . . Fastest Speed 50 | 50 80 140 Average Speed 112 | 90 108 140 Slowest Speed 140 | 100 140 140 Overloaded Moves . | . . . Propulsion Burnouts . | . . . Robots Hopped . | . . . Cave-ins Triggered . | . . . Exploration Rate (%) 42 | 3 95 29 Regions Visited 2 Branch Regions 1 Pre-discovered Areas 3 | . 2 1 Known Exits Taken 1 | . 1 . Unknown Exits Taken 1 | 1 . . Scrap Searched . | . . . Spaces Dug . | . . . Terrain Destroyed . | . . . Melee . | . . . Projectile . | . . . AOE . | . . . Terrain Rammed . | . . . Walls Destroyed . | . . . Machines Disabled . | . . . Actions | -11 -10 -10 --------- Run | Scr Mat Min Total 1154 | 142 853 159 Wait 44 | . 44 . Move 923 | 103 665 155 Hop . | . . . Pick Up 24 | 9 15 . Fast Attach 9 | 7 2 . Attach 3 | 1 2 . Detach 1 | 1 . . Swap 11 | . 11 . Drop 11 | 1 10 . Fire 127 | 20 104 3 Melee . | . . . Ram 1 | . . 1 Kick . | . . . Crush . | . . . Escape Stasis . | . . . Rewire . | . . . Trap . | . . . Miscellaneous . | . . . Route ------- -11/Scrapyard -10/Materials (discovered 5 exits: [*Mat x3] / *Min x2) -10/Mines History --------- Turn | Location | Event 11 | -11/Scrapyard | Discovered new exit (range 16) 174 | -11/Scrapyard | Entered Materials 288 | -10/Materials | Discovered new exit (range 15) 321 | -10/Materials | Build established: Mutant 356 | -10/Materials | Discovered new exit (range 16) 517 | -10/Materials | Discovered new exit (range 13) 601 | -10/Materials | Discovered new exit (range 13) 931 | -10/Materials | Identified exit to Mines 1015 | -10/Materials | Discovered new exit (range 15) 1148 | -10/Materials | Repaired Ion Engine 1164 | -10/Materials | Core integrity fell below 50% 1178 | -10/Materials | Core integrity fell below 20% 1292 | -10/Materials | Entered Mines 1294 | -10/Mines | Assisted by bots powering up and referring to "LRC-V3" 1483 | -10/Mines | Assembled infested the area 1518 | -10/Mines | Destroyed by as-67372 with Assembled Maul Last Messages --------------- 01341_ K-01 Serf collects debris. 01368_ BB1CJ03UC2:Q8CVA/&U:E%WFK8H5 #ZIW 01368_ K-01 Serf collects debris. 01375_ K-01 Serf destroyed. 01377_ K-01 Serf collects debris. 01378_ Acquired 24 matter. 01381_ K-01 Serf collects debris. 01422_ System corrupted: Component data lost. 01471_ System corrupted: Matter fused (-8). 01483_ ALERT: Infestation in the mines, dispatching Demolisher response squad. 01489_ Acquired derelict log, extracted data. World map updated: -8/Materials. 01512_ Slammed into as-11800. 01512_ as-11800 destroyed. 01513_ Acquired 8 matter. 01515_ Acquired 6 matter. 01517_ as-65601 destroyed. 01518_ Acquired 1 matter. 01518_ Lgt. Ion Engine destroyed. 01518_ System corrupted by crushing effect (+4). Map ----- +----------------------------------------------------+ | ????????# #?????????????????????????????????????? | | ???????## ##????????????????????????????????????? | | #?###### ######???????????????????????????????? | | ### ## ##??????????????????????????????? | | % #??????????????????????????????? | | ### ##### #??????????????????????????????? | | ??# #???# #??????????????????????????????? | | ??# #???# ##??????????????????????????????? | | ??# #???# ##???????????????????????????????? | | ??# #???# ##????????????????????????????????? | | ??# #???# ##?##?????????????????????????????? | | ??# #???## ## ##????????????????????????????? | | ??# #????#### #????????????????????????????? | | ??# #???????## #?????????? ????????????????? | | ??# #????????# #?????????? ????????????????? | | ??# ##???????## #?????????? ????????????????? | | ?## ####?????## ##?????????? #???????????????? | | ## ##??#######??????????# #???????????????? | | ## #### ####??????????# #???????????????? | | ## ## ##?????????# #???????????????? | | ## ##????????# #???????????????? | | ## ##???????# #???????????????? | | #####???# #???????????????? | | ### ## #???# #???????????????? | | #?#### ###### ## #???# #???????????????? | | #????## ##????## ###@#???# #???????????????? | | ##?????# #??????####?#a##### #???????????????? | | ???????# ##???????????# #???????????????? | | ???????# ##????????????####### %#???????????????? | | ???????# ########????????????# #???????????????? | | ???????# #????????????# #???????????????? | | ???????######### #????????????# #???????????????? | | ???????????##### #????????????# #???????????????? | | ????????#### ## ##???????????# #???????????????? | | ????????# #???????????# ???????????????? | | ????????# ##??????????? ???????????????? | | ????????# ##???????????? ??????????????? | | ????????##### ##????????????? ??????????????? | | ????????????####?????????????## #??????????????? | | ???????????????????????????????####??????????????? | | ?????????????????????????????????????????????????? | | | | | | | | | | | | | | | | | | | +----------------------------------------------------+ Best States ------------- Heat Dissipation 25 Energy Generation 10 Energy Capacity 250 Matter Stores 300 Matter Capacity 300 Sight Range 16 Terrain Scan Density 10 Armor Coverage 150 Evasion (%) 44 Item Schematics ----------------- None Robot Schematics ------------------ None Fabricated ------------ Nothing Alien Tech Used ----------------- None Achievements -------------- None Challenges ------------ None Game ------ Seed AngularAlloyTerminator Manual? 0 Play Time 00:11:11 Cumulative 547.9 hours Start 2022.06.02 @ 14:36:22 End 2022.06.02 @ 14:47:00 Sessions 1 Manual Loads 0 Difficulty Rogue Special Mode None Game No. 444 Rogue 444 Adventurer 0 Explorer 0 Win Type - Total 5 Types 4/0/0/1/0/0/0/0/0 Lore% 71 Gallery% 83 Achievement% 66 Wizard Run 0 Options --------- ASCII 0 Keyboard 1 Movement Numpad Keybinds 0 Fullscreen 1 Font 12/Terminus Map View 83x54 Tactical HUD 1 Map Filters NONE Filters NONE Steam 1 RUN: ce2a179c-5f8f-4fc9-9165-310f74b2b38a